Cogmind - Beta 17 @@@ ROGUE MODE // 2026.06.24 @ 20:16:09 Player: Dadrick Result: Destroyed by U4-HUO(R) with Subdweller Beam Cannon Performance ------------- Evolutions (0) 0 Regions Visited (2) 400 Robots Destroyed (18) 90 Value Destroyed (426) 426 Prototype IDs (0) 0 Alien Tech Used (0) 0 Bonus (0) 0 TOTAL SCORE: 916 Bonus ------- None Cogmind --------- Core Integrity 0/250 Matter 262/300 Energy 125/125 System Corruption 0% Temperature Cool (9) Movement Core (400) Ox7 Location -10/Subcaves Parts ------- > --- POWER (1) -------- Light Ion Engine > --- PROPULSION (2) --- (None) > --- UTILITY (2) ------ Large Storage Unit > --- WEAPON (2) ------- Small Laser > --- INVENTORY (15) --- Aluminum Leg Aluminum Leg Aluminum Leg Aluminum Leg Seismic Detector Mining Laser Peak State ------------ > --- POWER ------------ Light Nuclear Core > --- PROPULSION ------- Aluminum Leg Aluminum Leg > --- UTILITY ---------- Large Storage Unit Light Armor Plating > --- WEAPON ----------- Small Laser Light Assault Rifle > --- INVENTORY -------- Light Ion Engine Light Ion Engine Aluminum Leg Aluminum Leg Aluminum Leg Aluminum Leg Seismic Detector Small Laser Grenade Launcher Mining Laser [Rating: 10] Favorites ----------- Power Light Ion Engine Engine Light Ion Engine Power Core Light Nuclear Core Propulsion Aluminum Leg Leg Aluminum Leg Utility Large Storage Unit Device Seismic Detector Storage Large Storage Unit Protection Light Armor Plating Weapon Small Laser Energy Gun Small Laser Ballistic Gun Light Assault Rifle Launcher Grenade Launcher Build | -11 -10 -10 ------- Run | Yrd Mat Sub Slots Evolved . | . . . Power . | . . . Propulsion . | . . . Utility . | . . . Weapon . | . . . Parts Attached 13 | 7 4 2 Power 3 | 1 1 1 Engine 2 | 1 . 1 Core 1 | . 1 . Reactor . | . . . Propulsion 2 | 2 . . Treads . | . . . Leg 2 | 2 . . Wheel . | . . . Hover . | . . . Flight . | . . . Utility 4 | 2 2 . Device 1 | 1 . . Storage 2 | 1 1 . Processor . | . . . Hackware . | . . . Protection 1 | . 1 . Artifact . | . . . Weapon 4 | 2 1 1 Energy Gun 2 | 1 . 1 Energy Cannon . | . . . Ballistic Gun 1 | 1 . . Ballistic Cannon . | . . . Launcher 1 | . 1 . Special Weapon . | . . . Impact Weapon . | . . . Slashing Weapon . | . . . Piercing Weapon . | . . . Special Melee Weapon . | . . . Unidentified Prototypes . | . . . Parts Lost 7 | . . 7 Power 1 | . . 1 Propulsion 2 | . . 2 Utility 1 | . . 1 Weapon 3 | . . 3 Highest Loss Streak 7 | . . 7 To Critical Strikes . | . . . Average Backups 6 | . 6 8 Power . | . 1 . Propulsion 2 | . 2 4 Utility . | . . 1 Weapon 2 | . 2 2 Tool/Special . | . . . Unused Backups 5 | . . 5 Power . | . . . Propulsion 4 | . . 4 Utility . | . . . Weapon 1 | . . 1 Tool/Special . | . . . Average Slot Usage (%) 98 | . 100 94 Engine 9 | . 11 1 Core 4 | . 2 11 Leg 27 | . 28 27 Device 8 | . 10 1 Storage 14 | . 14 14 Protection 5 | . 3 10 Energy Gun 14 | . 14 14 Ballistic Gun 13 | . 13 11 Peak Build Rating 10 | 7 10 9 Average Rating 7 | 4 7 8 On Entrance 5 | . 7 9 Avg Prop Armor Cover (%) . | . . . Naked Turns . | . . . Heaviest Build 32 | 11 30 32 Greatest Support 20 | 20 20 20 Greatest Overweight (x) 2 | . 1 2 Average Overweight (x) . | . . 1 Largest Inventory Capacity 15 | 8 15 15 Average Capacity 14 | 7 14 15 Most Carried 10 | 3 10 9 Average Carried 6 | . 6 8 Final Capacity 15 | 8 15 15 Final Carried 9 | 2 9 6 Class Distribution -------------------- 100% | Mutant Dominant Class ---------------- Mutant | -10/Materials Mutant | -10/Subcaves Resources | -11 -10 -10 ----------- Run | Yrd Mat Sub Matter Collected 426 | 255 145 26 Remotely . | . . . Salvage Created 608 | 138 347 123 Parts 38 | 9 19 10 Haulers Intercepted . | . . . Recyclers Shooed . | . . . Parts Field Recycled . | . . . Retrieved Matter . | . . . Parts Self-Destructed 10 | . . 10 Prevented . | . . . Parts Restored . | . . . Kills | -11 -10 -10 ------- Run | Yrd Mat Sub Combat Hostiles Destroyed 12 | . 9 3 Guns 9 | . 6 3 AOE 3 | . 3 . Classes Destroyed 7 | 2 4 1 Tunneler 2 | 2 . . Recycler 2 | 1 1 . Operator 1 | . 1 . Watcher 1 | . 1 . Swarmer 3 | . 3 . Grunt 8 | . 6 2 Subdweller 1 | . . 1 Best Kill Streak 5 | 3 5 2 Combat Bots Only 3 | . 3 2 Max Kills in Single Turn 3 | 1 3 1 Gunslinging . | . . . Exploded 3 | . 3 . Melee . | . . . Uniques/NPCs Destroyed . | . . . Combat | -11 -10 -10 -------- Run | Yrd Mat Sub Hostile Shots Fired 72 | . 31 41 Missed 17 | . 7 10 Hits 55 | . 24 31 Projectile 55 | . 24 31 Critical Strikes 2 | . . 2 Damage Taken 944 | . 284 660 Core 261 | . 53 208 Absorbed by Shields . | . . . Core Remaining (%) 100 | 100 . . Volleys Fired 46 | 6 27 13 Largest 2 | 2 2 2 Hottest 60 | 60 60 60 Shots Fired 85 | 12 51 22 Gun 79 | 12 48 19 Cannon . | . . . Launcher 6 | . 3 3 Special . | . . . Kinetic 39 | 6 24 9 Thermal 40 | 6 24 10 Explosive 6 | . 3 3 Electromagnetic . | . . . Robot Hit Streak 17 | 5 17 6 Robot Miss Streak 1 | 1 1 1 Penetration Max . | . . . Secondary Targets 4 | . 3 1 Max Gunslinging Chain 1 | . 1 1 Shots Hit Robots 63 | 9 38 16 Core Hits 39 | 5 22 12 Critical Kills . | . . . Critical Parts Destroyed . | . . . Critical Strikes . | . . . Melee Attacks . | . . . Impact . | . . . Slashing . | . . . Piercing . | . . . Sneak Attacks . | . . . Combat Hostiles . | . . . Follow-up Attacks . | . . . Damage Inflicted 1108 | 91 591 426 Guns 595 | 91 352 152 Cannons . | . . . Explosions 513 | . 239 274 Melee . | . . . Ramming . | . . . Kinetic 240 | 35 129 76 Thermal 355 | 56 223 76 Explosive 513 | . 239 274 Electromagnetic . | . . . Impact . | . . . Slashing . | . . . Piercing . | . . . Highest Corruption . | . . . Average Corruption . | . . . Corruption Purged . | . . . Corruption Blocked . | . . . Overload Shots . | . . . Overflow Damage . | . . . Projectiles . | . . . Explosions . | . . . Melee . | . . . Knockbacks . | . . . Impact . | . . . Kinetic . | . . . Secondary . | . . . Self-Inflicted Damage . | . . . Shots . | . . . Rammed . | . . . Targets Rammed . | . . . Kicked . | . . . Crushed . | . . . Highest Temperature 175 | 20 175 4 Average Temperature 61 | 14 71 2 Received Heat Transfer 312 | . 147 165 Siege Activations . | . . . Martial Activations . | . . . Shielding Activations . | . . . Robots Disrupted . | . . . Combat Hostiles . | . . . Robots Corrupted . | . . . Combat Hostiles . | . . . Parts Fried . | . . . Impact Corruptions . | . . . Robots Melted . | . . . Combat Hostiles . | . . . Parts Melted 1 | . 1 . Heat Transferred 800 | 125 500 175 Parts Sabotaged . | . . . Parts Stolen . | . . . Parts Stripped . | . . . Power Chain Reactions . | . . . Alert | -11 -10 -10 ------- Run | Yrd Mat Sub Maximum Alert Level . | . . . Low Security (%) 100 | 100 100 . Level 1 . | . . . Level 2 . | . . . Level 3 . | . . . Level 4 . | . . . Level 5 . | . . . High Security . | . . . Max Security . | . . . Peak Influence 94 | 5 94 . Initial . | . . . Average 26 | 1 29 . Influence Increases 330 | 15 265 50 Destroy 0b10 Robot/C 220 | . 180 40 Destroy 0b10 Robot/NC 30 | 15 15 . Destroy Leader 52 | . 42 10 Successful Hack 9 | . 9 . Destroy Structure 19 | . 19 . Influence Decreases 330 | 15 265 50 Time Decay 310 | 15 265 30 Lost Part 20 | . . 20 Squads Dispatched 3 | . 3 . Investigation 1 | . 1 . Extermination . | . . . Reinforcement 2 | . 2 . Assault . | . . . Garrison . | . . . Intercept . | . . . Searches Triggered . | . . . Construction Impeded . | . . . Haulers Reinforced . | . . . Active Scanning Responses . | . . . Cargo Convoy Interrupts . | . . . Stealth | -11 -10 -10 --------- Run | Yrd Mat Sub Distress Signals 3 | . 3 . Communications Jammed . | . . . Distress Signals . | . . . Times Spotted 24 | . 17 7 Peak Tracking Total 5 | . 5 5 Tactical Retreats . | . . . Traps | -11 -10 -10 ------- Run | Yrd Mat Sub Traps Triggered 1 | . 1 . Indirectly . | . . . Trap Hack Attempts . | . . . Triggered . | . . . Disarmed . | . . . Reprogrammed . | . . . Reused . | . . . Traps Extracted . | . . . Installed . | . . . Triggered . | . . . Machines | -11 -10 -10 ---------- Run | Yrd Mat Sub Machines Disabled . | . . . Max in Single Turn . | . . . Machines Repaired . | . . . Machines Dismantled . | . . . Machines Sabotaged . | . . . Overloaded Fab Kills . | . . . Hacking | -11 -10 -10 --------- Run | Yrd Mat Sub Machines Accessed 3 | . 3 . Terminals 3 | . 3 . Fabricators . | . . . Repair Stations . | . . . Recycling Units . | . . . Scanalyzers . | . . . Garrison Access . | . . . Total Hacks 8 | . 8 . Successful 4 | . 4 . Failed 4 | . 4 . Catastrophic . | . . . Database Lockouts . | . . . Manual 3 | . 3 . Terminals 8 | . 8 . Fabricators . | . . . Repair Stations . | . . . Recycling Units . | . . . Scanalyzers . | . . . Garrison Access . | . . . Terminal Hacks 3 | . 3 . Locate Traps 1 | . 1 . Hauler Manifests 1 | . 1 . Zone Layout 1 | . 1 . Fabricator Hacks . | . . . Repair Station Hacks . | . . . Recycling Unit Hacks . | . . . Scanalyzer . | . . . Garrison Access Hacks . | . . . Unauthorized Hacks 1 | . 1 . Terminals 1 | . 1 . Botnet 1 | . 1 . Fabricators . | . . . Repair Stations . | . . . Recycling Units . | . . . Scanalyzers . | . . . Garrison Access . | . . . Data Cores Recovered 1 | . 1 . Used . | . . . Hacking Detections 1 | . 1 . Full Trace Events . | . . . Feedback Events . | . . . Feedback Blocked . | . . . Robot Schematics Acquired . | . . . Robots Built . | . . . Authchips . | . . . Time . | . . . Total Robot Build Rating . | . . . Part Schematics Acquired . | . . . Parts Built . | . . . Authchips . | . . . Time . | . . . Total Part Build Rating . | . . . Part Studies Acquired . | . . . Parts Repaired . | . . . Time . | . . . Parts Recycled . | . . . Recycled Matter . | . . . Retrieved Matter . | . . . Retrieved Components . | . . . Parts Scanalyzed . | . . . Part Schematics Acquired . | . . . Parts Damaged . | . . . Bothacking | -11 -10 -10 ------------ Run | Yrd Mat Sub Used RIF Installer . | . . . Robots Hacked . | . . . Non-combat . | . . . Combat . | . . . Robot Hacks Applied . | . . . Relay Couplers Released . | . . . Fabnet Peak Effective % . | . . . Robots Rewired . | . . . Allies Hacked . | . . . Hacks Repelled . | . . . Allies | -11 -10 -10 -------- Run | Yrd Mat Sub Total Allies . | . . . Largest Group . | . . . Highest-Rated Group . | . . . Highest-Rated Ally . | . . . Total Orders . | . . . Ally Attacks . | . . . Total Damage . | . . . Kills . | . . . Allies Corrupted . | . . . Allies Melted . | . . . Intel | -11 -10 -10 ------- Run | Yrd Mat Sub Active Infowar (turns) 676 | 12 646 18 Seismic 676 | 12 646 18 Robot Analysis Total . | . . . Derelict Logs Recovered . | . . . Drone Launches . | . . . Drone Recoveries . | . . . Exploration | -11 -10 -10 ------------- Run | Yrd Mat Sub Turns Passed 1187 | 85 881 221 Spaces Moved 530 | 49 393 88 Core 5 | 5 . . Treads . | . . . Legs 525 | 44 393 88 Wheels . | . . . Hover . | . . . Flight . | . . . Fastest Speed 50 | 50 120 190 Average Speed 180 | 112 186 192 Slowest Speed 260 | 120 190 260 Overloaded Moves . | . . . Propulsion Burnouts . | . . . Robots Hopped . | . . . Potential Cave-ins . | . . . Cave-ins Triggered . | . . . Exploration Rate (%) 24 | 3 60 11 Regions Visited 2 Branch Regions 1 Pre-discovered Areas . | . . . Known Exits Taken . | . . . Unknown Exits Taken 2 | 1 1 . Scrap Searched . | . . . Spaces Dug 16 | . 16 . Terrain Destroyed 49 | . 26 23 Melee . | . . . Projectile . | . . . AOE 49 | . 26 23 Terrain Rammed . | . . . Walls Destroyed . | . . . Machines Disabled . | . . . Actions | -11 -10 -10 --------- Run | Yrd Mat Sub Total 675 | 65 492 118 Wait 68 | . 57 11 Move 528 | 48 392 88 Hop . | . . . Pick Up 10 | 3 7 . Fast Attach 7 | 7 . . Attach 3 | . . 3 Detach . | . . . Swap 10 | . 7 3 Drop 3 | 1 2 . Fire 46 | 6 27 13 Melee . | . . . Ram . | . . . Kick . | . . . Crush . | . . . Escape Stasis . | . . . Rewire . | . . . Trap . | . . . Miscellaneous . | . . . Route ------- -11/Scrapyard -10/Materials (discovered 4 exits: [*Mat] / [*Min x2] / [*Sub]) -10/Subcaves History --------- Turn | Location | Event 4 | -11/Scrapyard | Discovered new exit (range 16) 86 | -11/Scrapyard | Entered Materials 315 | -10/Materials | Build established: Mutant 743 | -10/Materials | Discovered new exit (range 13) 861 | -10/Materials | Discovered new exit (range 11) 876 | -10/Materials | Discovered new exit (range 15) 951 | -10/Materials | Discovered new exit (range 9) 967 | -10/Materials | Entered Subcaves 968 | -10/Subcaves | Approached by a straggling Scientist 1148 | -10/Subcaves | Ambushed by Subdweller buried in earth 1161 | -10/Subcaves | Core integrity fell below 50% 1175 | -10/Subcaves | Core integrity fell below 20% 1188 | -10/Subcaves | Destroyed by U4-HUO(R) with Subdweller Beam Cannon Last Messages --------------- 01116_ Ion Engine fries itself beyond repair. 4C-71O(c): "I think it's somewhere west of here" 01121_ Subatomizers dissect the Aluminum Leg. 01127_ Aluminum Leg fries itself beyond repair. 01143_ Lgt. Nuclear Core destroyed. 01143_ Lgt. Armor Plating destroyed. 01149_ 1D-TSZ(R): "ARGHSUB!" 01149_ The unstable cave ceiling collapses. 01150_ Grenade Launcher destroyed. 01158_ The unstable cave ceiling collapses. 01170_ Sml. Laser destroyed. 4C-71O(c): "I think it's somewhere west of here" 01176_ DK-IAQ(R) destroyed. 01176_ Switching to secondary target: RP-NZJ(R). 01177_ Aluminum Leg destroyed. 01177_ Lgt. Assault Rifle destroyed. 01183_ U4-HUO(R) affixes Scrap Shield Fragment to Scrap Shield. 01185_ 4C-71O(c) destroyed. 01188_ Subatomizers dissect the Sub. Power Source. 01188_ Aluminum Leg destroyed. Map ----- +----------------------------------------------------+ | ?????????????????????????????????????????????????? | | ?????????????????????????????????????????????????? | | ???????????????????????????????? ????????????? | | ?????????????????????????????? ??????????? | | ???????????????????????????? #????????? | | ?????###???????????????????? #????????? | | ????## ##????????????????#?? ###??????? | | ??### #????????????????# ####???? | | ?## #????????????????? ??? | | ## ##?###???????????? ???? | | ###?## ###??????????? ????? | | #??# ???????????? #?????? | | ## ##??# #????????????? #??????? | | # #??## ##??????????##?# #???????? | | # ##?# ##??????#### ## " ?????# #?? | | # #?# ##?????? " #### #?? | | # #### #?????? """ " " #?? | | #????? " " #? | | #?????? " ## " | | #???????????### " " | | ###???????????## """ ### # ? | | ###??????????# "#####??#???? ? | | ## ###???######!"""##???????????? | | # ### #??## * %"""" #???????????? | | # #?## ##### #### "R=!""""" #???????????? | | ##??# #??# @ R ##""""""#???????????? | | ####??# #?## "## """""#???????????? | | ##????? ### % ""## "" "????????????? | | ##?????# ## % ####### ????????????? | | %??????# ### #### #??????# ????????????? | | ??????# ##?## #?# "#??????##?????????????? | | ?????? #????# #?# ##?????????????????????? | | %?????# ?????# #?## #??????????????????????? | | ## ?????### ?????## ???# ??????????????????????? | | ??????????##??????##??? ?????????????????????? | | ??????????????????????? ?????????????????????? | | ??????????????????????? ## ????????????????????? | | ??????????????????????? ??# ???????????????????? | | ??????????????????????# ??? ???????????????????? | | ??????????????????????# ???? ??????????????????? | | ?????????????????????? ???? ??????????????????? | | ?????????????????????? ????? ??????????????????? | | ??????????????????????? ????????????????????????? | | ??????????????????????? ????????????????????????? | | ?????????????????????????????????????????????????? | | ?????????????????????????????????????????????????? | | ?????????????????????????????????????????????????? | | ?????????????????????????????????????????????????? | | ?????????????????????????????????????????????????? | | ?????????????????????????????????????????????????? | +----------------------------------------------------+ Best States ------------- Heat Dissipation 25 Energy Generation 14 Energy Capacity 160 Matter Stores 300 Matter Capacity 300 Sight Range 16 Terrain Scan Density 10 Armor Coverage 150 Evasion (%) 55 Item Schematics ----------------- None Robot Schematics ------------------ None Fabricated ------------ Nothing Repaired ---------- Nothing Studied --------- None Alien Tech Used ----------------- None Achievements -------------- None Challenges ------------ None Game ------ Seed LatentStealthMount Manual? 0 Play Time 00:08:37 Cumulative 488.6 hours Start 2026.06.24 @ 20:09:04 End 2026.06.24 @ 20:16:09 Sessions 1 Manual Loads 0 Difficulty Rogue Special Mode None Game No. 178 Rogue 157 Adventurer 21 Explorer 0 Win Type - Total 24 Types 14/1/5/1/0/0/0/2/0/1 Lore% 67 Gallery% 73 Achievement% 65 Wizard Run 0 Options --------- Layout 1 ASCII 0 Keyboard 0 Movement Mouse Keybinds 0 Fullscreen 2 Font 32/SmallcapsGlow Map View 77x35 Zoom Use 0% Tactical HUD 1 Map Filters NONE Filters NONE Steam 1 RUN: 405fc990-3cb4-48d7-9eab-f712b125ca25